{"text_format":"1","workbook":"xlsx","n_sheets":6,"sheets":["Узлы","Работы","Турков (Шаблон)","Проект до 250м² ","Проект до 500 м²","Проект более 500 м²"],"not_rendered":{"charts":0,"images":4,"macros":1,"external_links":0,"defined_names":8,"comments":2,"pivot_tables":0},"unopened":[],"bounds":{"document_bytes":16777216,"sheet_cells":100000,"rows_first":2000,"rows_last":500,"rows_between":2000,"halvings":0,"cell_chars":16384,"cell_head_chars":4096},"cells_cut":0,"cells_raw":0,"read":"whole","date_system":"1900"}

{"sheet":"Узлы","index":0,"n_rows":179,"n_cols":8,"rows_kept":179,"cut":false,"hidden":false,"merged":[[99,4,103,4],[105,4,114,4]]}
["С электрическим догревателем:",null,null,"2023-10-10"]
[null,"Розничная цена","Скидка","Цена Гуд Вуд "]
["1. Приточно-вытяжная установка Zenit Standart 300 Е с 2ступ рекуператором, электронагревателем, автоматикой",252000,0.3,{"$f":"B3*(1-C3)","v":176400}]
["Заслонка D160 с электроприводом и возвратной пружиной",20100,0.3,{"$f":"B4*(1-C4)","v":14070}]
["Блок охлаждения:"]
["NEW COOL-BOX i 160D-400 2,0 кВ",79000,0.3,{"$f":"B6*(1-C6)","v":55300}]
["ККБ NEW COOL-BOX k 2.0",62000,0.3,{"$f":"B7*(1-C7)","v":43400}]
["Комплект фильтров для первого обслуживания (Фильтр карманный F5)",1800,0.3,{"$f":"B8*(1-C8)","v":1260}]
["Комбинированная приточно-вытяжная решётка 160D",7000,0.3,{"$f":"B9*(1-C9)","v":4900}]
[]
["1. Приточно-вытяжная установка Zenit 500 Standart EL/EL Е  2ст рекуператором, с электронагревателем, автоматикой",298000,0.3,{"$f":"B11*(1-C11)","v":208600}]
["Заслонка D200 с электроприводом и возвратной пружиной",20600,0.3,{"$f":"B12*(1-C12)","v":14419.999999999998}]
["Блок охлаждения:"]
["NEW COOL-BOX i 200D-600 2,5 кВт",81000,0.3,56700]
["ККБ NEW COOL-BOX k 2.5",71000,0.3,49700]
["Комплект фильтров для первого обслуживания (Фильтр карманный F5, комплект 2 шт.)",2000,0.3,1400]
["Комбинированная приточно-вытяжная решётка 200D",8500,0.3,5950]
[]
["1. Приточно-вытяжная установка Zenit 700 Standart EL/EL Е  2ст рекуператором, с электронагревателем, автоматикой",310000,0.3,217000]
["Заслонка D250 с электроприводом и возвратной пружиной",23400,0.3,16379.999999999998]
["Блок охлаждения:"]
["NEW COOL-BOX i 250D-1000 3,5 кВт",106000,0.3,74200]
["ККБ NEW COOL-BOX k 3.5",92000,0.3,64399.999999999993]
["Комплект фильтров для первого обслуживания (Фильтр карманный F5, комплект 2 шт.)",2500,0.3,1750]
["Комбинированная приточно-вытяжная решётка 250D",10000,0.3,7000]
[]
["1. Приточно-вытяжная установка Zenit 350 HECO EL/EL Е с 3ступ рекуперацией с электронагревателем, автоматикой",265000,0.3,185500]
["Заслонка D160 с электроприводом и возвратной пружиной",20100,0.3,14070]
["Блок охлаждения:"]
["NEW COOL-BOX i 160D-400 2,0 кВ",79000,0.3,55300]
["ККБ NEW COOL-BOX k 2.0",62000,0.3,43400]
["Комплект фильтров для первого обслуживания (Фильтр карманный F5)",1800,0.3,1260]
["Комбинированная приточно-вытяжная решётка 160D",7000,0.3,4900]
[]
["1. Приточно-вытяжная установка Zenit 550 HECO EL/EL E с рекуперацией с электронагревателем, автоматикой",295000,0.3,206500]
["Заслонка D200 с электроприводом и возвратной пружиной",20600,0.3,14419.999999999998]
["Блок охлаждения:"]
["NEW COOL-BOX i 200D-600 2,5 кВт",81000,0.3,56700]
["ККБ NEW COOL-BOX k 2.5",71000,0.3,49700]
["Комплект фильтров для первого обслуживания (Фильтр карманный F5, комплект 2 шт.)",2000,0.3,1400]
["Комбинированная приточно-вытяжная решётка 200D",8500,0.3,5950]
[]
["1. Приточно-вытяжная установка Zenit 750 HECO EL/EL E с рекуперацией с электронагревателем, автоматикой",468000,0.3,327600,null,430000]
["Заслонка D250 с электроприводом и возвратной пружиной",23400,0.3,16379.999999999998,null,16100]
["Блок охлаждения:"]
["NEW COOL-BOX i 250D-1000 3,5 кВт",106000,0.3,74200,null,80000]
["ККБ NEW COOL-BOX k 3.5",92000,0.3,64399.999999999993,null,87000]
["Комплект фильтров для первого обслуживания (Фильтр карманный F5, комплект 2 шт.)",2750,0.3,1924.9999999999998,null,2750]
["Комбинированная приточно-вытяжная решётка 250D",10000,0.3,7000,null,12350]
[]
["С водяным догревателем:"]
["1. Приточно-вытяжная установка Zenit 700 Standart EL/EL W  2ст рекуператором, с водяным нагревателем и смесительным узлом, автоматикой",427000,0.3,{"$f":"B52*(1-C52)","v":298900}]
["Заслонка D250 с электроприводом и возвратной пружиной",20100,0.3,{"$f":"B53*(1-C53)","v":14070}]
["Блок охлаждения:",null,null,{"$f":"B54*0.7","v":0}]
["NEW COOL-BOX i 250D-1000 3,5 кВт",106000,0.3,{"$f":"B55*(1-C55)","v":74200}]
["ККБ NEW COOL-BOX k 3.5",92000,0.3,{"$f":"B56*(1-C56)","v":64399.999999999993}]
["Блок увлажнителя:"]
["HumiBox Pump 3",87000,0.3,{"$f":"B58*(1-C58)","v":60899.999999999993}]
["HumiBox 1000",129000,0.3,{"$f":"B59*(1-C59)","v":90300}]
["Комплект фильтров для первого обслуживания (Фильтр карманный F5, комплект 2 шт.)",2500,0.3,{"$f":"B60*(1-C60)","v":1750}]
["Комбинированная приточно-вытяжная решётка 250D",10000,0.3,{"$f":"B61*(1-C61)","v":7000}]
[]
["1. Приточно-вытяжная установка Zenit 550 HECO EL/EL W с рекуперацией с водяным нагревателем и смесительным узлом, автоматикой",420000,0.3,{"$f":"B63*(1-C63)","v":294000}]
["Заслонка D200 с электроприводом и возвратной пружиной",20600,0.3,{"$f":"B64*(1-C64)","v":14419.999999999998}]
["Блок охлаждения:"]
["NEW COOL-BOX i 200D-600 2,5 кВт",81000,0.3,{"$f":"B66*(1-C66)","v":56700}]
["ККБ NEW COOL-BOX k 2.5",71000,0.3,{"$f":"B67*(1-C67)","v":49700}]
["Блок увлажнителя:"]
["HumiBox Pump 3",87000,0.3,{"$f":"B69*(1-C69)","v":60899.999999999993}]
["HumiBox 600",91000,0.3,{"$f":"B70*(1-C70)","v":63699.999999999993}]
["Комплект фильтров для первого обслуживания (Фильтр карманный F5, комплект 2 шт.)",2000,0.3,{"$f":"B71*(1-C71)","v":1400}]
["Комбинированная приточно-вытяжная решётка 200D",8500,0.3,{"$f":"B72*(1-C72)","v":5950}]
[]
["1. Приточно-вытяжная установка Zenit 750 HECO EL/EL W с рекуперацией с электронагревателем, автоматикой",612000,0.3,{"$f":"B74*(1-C74)","v":428400}]
["Заслонка D250 с электроприводом и возвратной пружиной",23400,0.3,{"$f":"B75*(1-C75)","v":16379.999999999998}]
["Блок охлаждения:"]
["NEW COOL-BOX i 250D-1000 3,5 кВт",106000,0.3,{"$f":"B77*(1-C77)","v":74200}]
["ККБ NEW COOL-BOX k 3.5",92000,0.3,{"$f":"B78*(1-C78)","v":64399.999999999993}]
["Блок увлажнителя:"]
["HumiBox Pump 3",87000,0.3,{"$f":"B80*(1-C80)","v":60899.999999999993}]
["HumiBox 1000",129000,0.3,{"$f":"B81*(1-C81)","v":90300}]
["Комплект фильтров для первого обслуживания (Фильтр карманный F5, комплект 2 шт.)",2750,0.3,{"$f":"B82*(1-C82)","v":1924.9999999999998}]
["Комбинированная приточно-вытяжная решётка 250D",10000,0.3,{"$f":"B83*(1-C83)","v":7000}]
[]
["Датчики СО2 и автоматика:"]
["Встроенный в установку датчик CO2",9250,0.3,{"$f":"B86*(1-C86)","v":6475}]
["Встроенный в установку датчик Stereo VAV",8650,0.3,6055]
["Встроенный в установку датчик VAV",5000,0.3,3500]
["Пульт в сборе",22000,0.3,15399.999999999998]
[]
["Воздуховод гофрированный 2-х слойный в бухте D75, 50м ",25000,0.2,{"$f":"B91*(1-C91)","v":20000}]
["Муфты D75 для подключения диффузоров",350,0.2,280]
["Фланец Schiberg d75 мм",500,0.2,400]
["Заглушка Schiberg d75",150,0.2,120]
["Дроссель для гофрир. воздуховода Schiberg d75",150,0.2,120]
["Муфта соединительная Schiberg d75 - 300 руб",350,0.2,280]
["Кронштейны для напольного/настенного крепления - (кронштейн настенный, 4 виброопоры, площадка крепежная)",5200,0.2,4160]
[]
["Комплект шумоглушителей и дроссельных клапанов:    "]
["Заслонка 125 с приводом и возвратной пружиной ",19300,{"$f":"$C$91","v":0.2},{"$f":"B100*(1-C100)","v":15440},{"$f":"SUM(D100:D104)/5","v":17360}]
["Заслонка 160 с приводом и возвратной пружиной ",20100,0.2,{"$f":"B101*(1-C101)","v":16080}]
["Заслонка 200 с приводом и возвратной пружиной ",20600,0.2,{"$f":"B102*(1-C102)","v":16480}]
["Заслонка 250 с приводом и возвратной пружиной ",23400,0.2,{"$f":"B103*(1-C103)","v":18720}]
["Заслонка 315 с приводом и возвратной пружиной ",25100,0.2,{"$f":"B104*(1-C104)","v":20080}]
[null,null,null,null,null,"Используемые ШГ"]
["Шумоглушитель для круглых каналов Д125/900",5700,0.2,{"$f":"B106*(1-C106)","v":4560},{"$f":"SUM(D106:D115)/10","v":5896}]
["Шумоглушитель для круглых каналов Д160/900",6700,0.2,5360]
["Шумоглушитель для круглых каналов Д200/900",7900,0.2,6320,null,{"$f":"D108","v":6320}]
["Шумоглушитель для круглых каналов Д250/900",9400,0.2,7520,null,{"$f":"D109","v":7520}]
["Шумоглушитель для круглых каналов Д315/900",13000,0.2,10400,null,{"$f":"D110","v":10400}]
["Шумоглушитель для круглых каналов Д125/600",4100,0.2,3280]
["Шумоглушитель для круглых каналов Д160/600",4900,0.2,3920]
["Шумоглушитель для круглых каналов Д200/600",5700,0.2,4560]
["Шумоглушитель для круглых каналов Д250/600",6800,0.2,5440]
["Шумоглушитель для круглых каналов Д315/600",9500,0.2,7600]
[]
["Расходные материалы, крепёж на первый этап",null,null,4500,"цена примерная со слов Виктора"]
["Электроматериал для подключения вент.установки",null,null,{"$f":"16500/4","v":4125},"узел электрики на ПНР /4 со слов Виктора"]
["Комплект из счёта *2 ",null,null,{"$f":"$G$119","v":19398},"согласно счёта (см. правее)",null,19398,"Шумоглушители, дроссельные клапаны, гибкие вставки 2 этап"]
[]
["Коллектор (воздухораспределительная коробка) на 4-6 выходов",8400,0.15,{"$f":"B121*(1-C121)","v":7140},"Письмо Турков от 05.10.2023"]
["Коллектор (воздухораспределительная коробка) на 8-10 выходов",9800,0.15,{"$f":"B122*(1-C122)","v":8330}]
["Коллектор (воздухораспределительная коробка) на 12 выходов",13800,0.15,{"$f":"B123*(1-C123)","v":11730}]
["Коллектор (воздухораспределительная коробка) на 16 выходов",18400,0.15,{"$f":"B124*(1-C124)","v":15640}]
["Коллектор (воздухораспределительная коробка) на 20 выходов",25000,0.15,{"$f":"B125*(1-C125)","v":21250}]
[]
["Адаптеры для подключения плоских решеток (длина до 500)",{"$f":"5400+1700","v":7100},0.15,{"$f":"B127*(1-C127)","v":6035},"Оптимум Lx150x10"]
["Адаптеры для подключения плоских решеток (нестандарт длина 600-800)",{"$f":"7200+1700","v":8900},0.15,{"$f":"B128*(1-C128)","v":7565},"Оптимум Lx150x10"]
[]
["Магистральные воздуховоды и фасонные изделия",{"$f":"$G$179","v":34439},null,{"$f":"B130","v":34439},"согласно счёта (см. правее ниже)"]
["Изоляция, крепеж, расходные материалы",{"$f":"$G$136","v":21589},null,{"$f":"B131","v":21589},"согласно ЗНО (см. правее ниже)"]
[]
["Пленум SCHIBERG (для кругл. диффузоров)",4600,0.15,{"$f":"B133*(1-C133)","v":3910}]
[]
["Установка круглого диффузора",null,null,3000,"среднее значение"]
["Установка прямоугольной решётки (до 500мм) в адаптер, материал",{"$f":"9100","v":9100},0.15,{"$f":"B136*(1-C136)","v":7735},"Оптимум Lx150x10",null,21589,"Изоляция 2 этап"]
["Нестандартная решётка",11880,0.15,{"$f":"B137*(1-C137)","v":10098}]
[]
["Наружная накладная решетка 300*300",null,null,1500,"РэдВент \nСчет на оплату № 28725 от 31 октября 2023 г."]
["Аэратор D250 на кровле, цвет стандарт",null,null,18000]
[]
[]
[]
[]
[]
[]
[]
[]
[]
[]
[]
[]
[]
[]
[]
[]
[]
[]
[]
[]
[]
[]
[]
[]
[]
[]
[]
[]
[]
[]
[]
[]
[]
[]
[]
[]
[]
[]
[null,null,null,null,null,null,34439,"Оцинковка  2 этап"]

{"sheet":"Работы","index":1,"n_rows":27,"n_cols":5,"rows_kept":27,"cut":false,"hidden":false,"merged":[]}
[null,"Цена за единицу",0.2]
["ОПЛАТА РАБОТ ПО ВЕНТИЛЯЦИИ  прораб и бригада","бригада","прораб"]
["Монтаж вентиляционной установки (включая все подключения)+ пробный запуск с настройкой",22000,{"$f":"CEILING(B3*$C$1,10)","v":4400}]
["Монтаж системы увлажнения воздуха (включая все подключения) + пробный запуск с настройкой",11000,{"$f":"CEILING(B4*$C$1,10)","v":2200}]
["Монтаж датчика влажности (комплект)/пульта",1732,350]
["Установка стенового вентиля Out/in с проходными отверстиями",11000,2200]
["Установка наружной решетки с проходным отверстием",5000,{"$f":"CEILING(B7*$C$1,10)","v":1000}]
["Установка аэратоора на кровле D200-D250",7000,{"$f":"CEILING(B8*$C$1,10)","v":1400}]
[]
["Установка и подключение приточного/вытяжного диффузора",770,160]
["Прокладка гибких воздуховодов до приточного/вытяжного диффузора (комплект на диффузор) с установкой муфты",3850,770,{"$f":"B11*0.2","v":770},"\"Вент точка\""]
["Монтаж круглого диффузора в адаптер",600,120]
["Монтаж прямоугольной решетки в адаптер",500,100]
["Монтаж нестандартной прямоугольной решетки в адаптер",{"$f":"B13*1.5","v":750},150]
["Установка распределительной коробки и подключение воздуховодов",3300,660]
["Прокладка трассы от установки до распределительной коробки (комплект)",7150,1430]
["Установка шумоглушителя, дроссельного клапана",2750,550]
["ПНР ПВУ/ отдельный выезд + ГСМ",13750,2750]
["ПНР увлажнителя/ совместно с ПВУ",3850,770]
["Алмазное бурение",11000,2200]
["ГСМ",1500,300]
["Уборка мусора, наведение порядка на территории",1500,300]
["Вывоз мусора с объекта своими силами",2500,500]
["Разгрузо-погрузочные работы (скрытые и котельная)",1500,300]
["Обклейка тепло-шумоизоляцией (до 10м трасс)",1500,300]
["Расходные материалы, амортизация",5000,5000]
["Монтаж наружнего и внутреннего блоков кондиционирования",6000,1200]

{"sheet":"Турков (Шаблон)","index":2,"n_rows":88,"n_cols":13,"rows_kept":88,"cut":false,"hidden":false,"merged":[[81,5,81,6],[88,9,89,10],[63,9,63,10],[74,0,74,6],[79,5,79,6],[66,0,66,4],[66,5,66,6],[84,9,85,10],[67,0,69,0],[71,0,71,4],[71,5,71,6],[72,0,72,4],[72,5,72,6],[62,0,62,6],[65,0,65,4],[65,5,65,6],[6,0,15,0],[5,0,5,6],[0,0,0,6],[1,1,1,6],[2,0,2,6],[3,0,3,6],[17,0,61,0]]}
[]
[{"$f":"TODAY()","v":"2023-11-29"},"Данный сметный расчёт действителен 7 календарных дней. По истечению срока, цены могут быть изменены."]
["Сметный расчет Вентиляция  1эт ИД"]
["Приточно-вытяжная вентиляция "]
["Материалы/услуги","Описание","Кол-во","Ед.изм","Мат-ал, руб","Работа, руб ","Итого, руб","k =  (1-рента)","Материал","Бригада","Прораб","Итого","Рента"]
[]
[" Первый этап ","Воздуховод гофрированный 2-х слойный в бухте  50м ",3,"бухт",{"$f":"I7/H7*$J$88","v":85714.285714285725},null,{"$f":"E7+F7","v":85714.285714285725},0.7,{"$f":"C7*Узлы!D91","v":60000},null,null,{"$f":"SUM(I7:K7)","v":60000},{"$f":"IF(G7=0,\"\",(G7-I7)/G7)","v":0.3000000000000001}]
[null,"Комплект прокладок, муфт, заглушек для гофрированного воздуховода (на 1 выход)",26,"шт",44571.428571428572,null,44571.428571428572,0.7,{"$f":"C8*(Узлы!D92+Узлы!D93+Узлы!D94+Узлы!D95+Узлы!D96)","v":31200},null,null,{"$f":"SUM(I8:K8)","v":31200},{"$f":"IF(G8=0,\"\",(G8-I8)/G8)","v":0.3}]
[null,"Коллектор (воздухораспределительная коробка) на 6 выходов",null,"шт",0,null,0,0.7,{"$f":"C9*Узлы!D121","v":0},{"$f":"C9*Работы!$B$15","v":0},{"$f":"J9*20%","v":0},0,""]
[null,"Коллектор (воздухораспределительная коробка) на 8-10 выходов",null,"шт",0,null,{"$f":"E10+F10","v":0},0.7,{"$f":"C10*Узлы!D122","v":0},{"$f":"C10*Работы!$B$15","v":0},0,{"$f":"SUM(I10:K10)","v":0},{"$f":"IF(G10=0,\"\",(G10-I10)/G10)","v":""}]
[null,"Коллектор (воздухораспределительная коробка) на 12 выходов",1,"шт",16757.142857142859,null,16757.142857142859,0.7,{"$f":"C11*Узлы!D123","v":11730},{"$f":"C11*Работы!$B$15","v":3300},660,15690,0.30000000000000004]
[null,"Коллектор (воздухораспределительная коробка) на 16 выходов",1,"шт",22342.857142857145,null,22342.857142857145,0.7,{"$f":"C12*Узлы!D124","v":15640},{"$f":"C12*Работы!$B$15","v":3300},660,19600,0.30000000000000004]
[null,"Коллектор (воздухораспределительная коробка) на 20 выходов",null,"шт",0,null,0,0.7,{"$f":"C13*Узлы!D125","v":0},{"$f":"C13*Работы!$B$15","v":0},0,0,""]
[null,"Муфты D125 для подключения диффузоров (монтаж трасс воздуховодов)",1,"шт",5585.7142857142862,null,5585.7142857142862,0.7,{"$f":"C14*Узлы!D133","v":3910},{"$f":"C14*Работы!B11","v":3850},770,8530,0.30000000000000004]
[null,"Адаптеры для подключения плоских решеток (длина до 500)",11,"шт",94835.71428571429,null,94835.71428571429,0.7,{"$f":"C15*Узлы!D127","v":66385},{"$f":"C15*Работы!B11","v":42350},8470,117205,0.30000000000000004]
[null,"Расходные материалы, крепёж",1,"шт",6428.5714285714294,null,6428.5714285714294,0.7,{"$f":"C16*Узлы!D117","v":4500},null,null,{"$f":"SUM(I16:K16)","v":4500},0.3000000000000001]
["Монтаж системы вентиляции 1 этап",null,null,null,null,{"$f":"SUM(J7:K16)/0.5*$K$88*1.5","v":190080},null,null,null,null,null,0,{"$f":"IF(F17=0,\"\",(F17-SUM(J7:K16))/F17)","v":0.66666666666666663}]
["Второй этап ","1. Приточно-вытяжная установка Zenit 500 Standart EL/EL Е  2ст рекуператором, с электронагревателем, автоматикой",1,"шт",{"$f":"I18/H18*$J$88","v":298000},null,{"$f":"E18+F18","v":298000},0.7,{"$f":"C18*Узлы!D11","v":208600},{"$f":"C18*Работы!B3","v":22000},{"$f":"J18*20%","v":4400},235000,{"$f":"IF(G18=0,\"\",(G18-I18)/G18)","v":0.3}]
[null,"Заслонка D200 с электроприводом и возвратной пружиной",2,"шт",41200,null,{"$f":"E19+F19","v":41200},0.7,{"$f":"C19*Узлы!D12","v":28839.999999999996},null,null,28839.999999999996,{"$f":"IF(G19=0,\"\",(G19-I19)/G19)","v":0.3000000000000001}]
[null,"Блок охлаждения 2,5кВт:",null,"шт",0,null,0,0.7,{"$f":"C20*(Узлы!D14+Узлы!D15)","v":0},null,null,0,""]
[null,"NEW COOL-BOX i 200D-600 2,5 кВт",null,"шт",0,null,0,0.7,{"$f":"C21*N21*$I$2","v":0},null,null,0,""]
[null,"ККБ NEW COOL-BOX k 2.5",null,"шт",0,null,0,0.7,{"$f":"C22*N22*$I$2","v":0},null,null,0,""]
[null,"Комплект фильтров для первого обслуживания (Фильтр карманный F5, комплект 2 шт.)",1,"шт",2000.0000000000002,null,2000.0000000000002,0.7,{"$f":"C23*Узлы!D16","v":1400},null,null,1400,0.3000000000000001]
[null,"Комбинированная приточно-вытяжная решётка 200D",1,"шт",8500,null,8500,0.7,{"$f":"C24*Узлы!D17","v":5950},{"$f":"C24*Работы!B6","v":11000},{"$f":"J24*20%","v":2200},19150,{"$f":"IF(G24=0,\"\",(G24-I24)/G24)","v":0.3}]
[null,"1. Приточно-вытяжная установка Zenit 700 Standart EL/EL Е  2ст рекуператором, с электронагревателем, автоматикой",null,"шт",0,null,0,0.7,{"$f":"C25*Узлы!D19","v":0},{"$f":"C25*Работы!B3","v":0},{"$f":"J25*20%","v":0},0,""]
[null,"Заслонка D250 с электроприводом и возвратной пружиной",null,"шт",0,null,0,0.7,{"$f":"C26*Узлы!D20","v":0},null,null,0,""]
[null,"Блок охлаждения 3,5кВт:",null,"шт",0,null,0,0.7,{"$f":"C27*(Узлы!D22+Узлы!D23)","v":0},null,null,0,""]
[null,"NEW COOL-BOX i 250D-1000 3,5 кВт",null,"шт",0,null,0,0.7,{"$f":"C28*Узлы!D22","v":0},null,null,0,""]
[null,"ККБ NEW COOL-BOX k 3.5",null,"шт",0,null,0,0.7,{"$f":"C29*Узлы!D23","v":0},null,null,0,""]
[null,"Комплект фильтров для первого обслуживания (Фильтр карманный F5, комплект 2 шт.)",null,"шт",0,null,0,0.7,{"$f":"C30*Узлы!D24","v":0},null,null,0,""]
[null,"Комбинированная приточно-вытяжная решётка 250D",null,"шт",0,null,0,0.7,{"$f":"C31*Узлы!D25","v":0},{"$f":"C31*Работы!B6","v":0},{"$f":"J31*20%","v":0},0,""]
[null,"1. Приточно-вытяжная установка Zenit 350 HECO EL/EL Е с 3ступ рекуперацией с электронагревателем, автоматикой",null,"шт",0,null,0,0.7,{"$f":"C32*Узлы!D27","v":0},{"$f":"C32*Работы!B3","v":0},{"$f":"J32*20%","v":0},0,""]
[null,"Заслонка D160 с электроприводом и возвратной пружиной",null,"шт",0,null,0,0.7,{"$f":"C33*Узлы!D28","v":0},null,null,0,""]
[null,"Блок охлаждения 2,0кВт:",null,"шт",0,null,0,0.7,{"$f":"C34*(Узлы!D30+Узлы!D31)","v":0},null,null,0,""]
[null,"NEW COOL-BOX i 160D-400 2,0 кВ",null,"шт",0,null,0,0.7,{"$f":"C35*Узлы!D30","v":0},null,null,0,""]
[null,"ККБ NEW COOL-BOX k 2.0",null,"шт",0,null,0,0.7,{"$f":"C36*Узлы!D31","v":0},null,null,0,""]
[null,"Комплект фильтров для первого обслуживания (Фильтр карманный F5)",null,"шт",0,null,0,0.7,{"$f":"C37*Узлы!D32","v":0},null,null,0,""]
[null,"Комбинированная приточно-вытяжная решётка 160D",null,"шт",0,null,0,0.7,{"$f":"C38*Узлы!D33","v":0},{"$f":"C38*Работы!B6","v":0},{"$f":"J38*20%","v":0},0,""]
[null,"1. Приточно-вытяжная установка Zenit 550 HECO EL/EL E с рекуперацией с электронагревателем, автоматикой",null,"шт",0,null,0,0.7,{"$f":"C39*Узлы!D35","v":0},{"$f":"C39*Работы!B3","v":0},{"$f":"J39*20%","v":0},0,""]
[null,"Заслонка D200 с электроприводом и возвратной пружиной",null,"шт",0,null,0,0.7,{"$f":"C40*Узлы!D36","v":0},null,null,0,""]
[null,"Блок охлаждения 2,5кВт:",null,"шт",0,null,0,0.7,{"$f":"C41*(Узлы!D38+Узлы!D39)","v":0},null,null,0,""]
[null,"NEW COOL-BOX i 200D-600 2,5 кВт",null,"шт",0,null,0,0.7,{"$f":"C42*Узлы!D38","v":0},null,null,0,""]
[null,"ККБ NEW COOL-BOX k 2.5",null,"шт",0,null,0,0.7,{"$f":"C43*Узлы!D39","v":0},null,null,0,""]
[null,"Комплект фильтров для первого обслуживания (Фильтр карманный F5, комплект 2 шт.)",null,"шт",0,null,0,0.7,{"$f":"C44*Узлы!D40","v":0},null,null,0,""]
[null,"Комбинированная приточно-вытяжная решётка 200D",null,"шт",0,null,0,0.7,{"$f":"C45*Узлы!D41","v":0},{"$f":"C45*Работы!B6","v":0},{"$f":"J45*20%","v":0},0,""]
[null,"1. Приточно-вытяжная установка Zenit 750 HECO EL/EL E с рекуперацией с электронагревателем, автоматикой",null,"шт",0,null,0,0.7,{"$f":"C46*Узлы!D43","v":0},{"$f":"C46*Работы!B3","v":0},{"$f":"J46*20%","v":0},0,""]
[null,"Заслонка D250 с электроприводом и возвратной пружиной",null,"шт",0,null,0,0.7,{"$f":"C47*Узлы!D44","v":0},null,null,0,""]
[null,"Блок охлаждения 3,5кВт:",null,"шт",0,null,0,0.7,{"$f":"C48*(Узлы!D46+Узлы!D47)","v":0},null,null,0,""]
[null,"NEW COOL-BOX i 250D-1000 3,5 кВт",null,"шт",0,null,0,0.7,{"$f":"C49*Узлы!D46","v":0},null,null,0,""]
[null,"ККБ NEW COOL-BOX k 3.5",null,"шт",0,null,0,0.7,{"$f":"C50*Узлы!D47","v":0},null,null,0,""]
[null,"Комплект фильтров для первого обслуживания (Фильтр карманный F5, комплект 2 шт.)",null,"шт",0,null,0,0.7,{"$f":"C51*Узлы!D48","v":0},null,null,0,""]
[null,"Комбинированная приточно-вытяжная решётка 250D",null,"шт",0,null,0,0.7,{"$f":"C52*Узлы!D49","v":0},{"$f":"C52*Работы!B6","v":0},{"$f":"J52*20%","v":0},0,""]
[null,{"$f":"Узлы!A139","v":"Наружная накладная решетка 300*300"},1,"шт",{"$f":"I53/H53*$J$88","v":2142.8571428571431},null,{"$f":"E53+F53","v":2142.8571428571431},0.7,{"$f":"C53*Узлы!D139","v":1500},{"$f":"C53*Работы!B7","v":5000},{"$f":"J53*20%","v":1000},{"$f":"SUM(I53:K53)","v":7500},0.3000000000000001]
[null,{"$f":"Узлы!A140","v":"Аэратор D250 на кровле, цвет стандарт"},1,"шт",{"$f":"I54/H54*$J$88","v":25714.285714285717},null,{"$f":"E54+F54","v":25714.285714285717},0.7,{"$f":"C54*Узлы!D140","v":18000},{"$f":"C54*Работы!B8","v":7000},{"$f":"J54*20%","v":1400},{"$f":"SUM(I54:K54)","v":26400},{"$f":"IF(G54=0,\"\",(G54-I54)/G54)","v":0.3000000000000001}]
[null,"Кронштейны для напольного/настенного крепления",1,"компл.",{"$f":"I55/H55*$J$88","v":5942.8571428571431},null,{"$f":"E55+F55","v":5942.8571428571431},0.7,{"$f":"C55*Узлы!D97","v":4160},null,null,4160,0.30000000000000004]
[null,"Электроподключения установки, пульта, заслонок",1,"компл.",5892.8571428571431,null,{"$f":"E56+F56","v":5892.8571428571431},0.7,{"$f":"C56*Узлы!D118","v":4125},null,null,4125,0.30000000000000004]
[null,"Датчик СО2 ",null,"шт",0,null,0,0.7,{"$f":"C57*Узлы!D86","v":0},null,null,0,""]
[null,"Пульт в сборе",1,"шт",22000,null,22000,0.7,{"$f":"C58*Узлы!D89","v":15399.999999999998},null,null,15399.999999999998,0.3000000000000001]
[null,"Блок увлажнителя",null,"компл.",0,null,{"$f":"E59+F59","v":0},0.7,null,null,null,{"$f":"SUM(I59:K59)","v":0},""]
[null,"Комплект шумоглушителей и дроссельных клапанов (2шумоглишителя, 2клапана)",1,"компл.",27711.428571428572,null,27711.428571428572,0.7,{"$f":"C60*Узлы!D119","v":19398},{"$f":"C60*(Работы!B17*4)","v":11000},{"$f":"J60*20%","v":2200},32598,0.30000000000000004]
[null,"Магистральные воздуховоды и фасонные изделия",1,"компл.",49198.571428571435,null,49198.571428571435,0.7,{"$f":"C61*Узлы!D130","v":34439},{"$f":"SUM(C9:C13,C61)*Работы!B16","v":21450},4290,60179,0.3000000000000001]
[null,"Изоляция, крепеж, расходные материалы",1,"компл.",30841.428571428572,null,{"$f":"E62+F62","v":30841.428571428572},0.7,{"$f":"C62*Узлы!D131","v":21589},{"$f":"C62*(Работы!B25+Работы!B26)","v":6500},{"$f":"J62*20%","v":1300},{"$f":"SUM(I62:K62)","v":29389},{"$f":"IF(G62=0,\"\",(G62-I62)/G62)","v":0.30000000000000004}]
[null,null,null,null,null,null,null,null,null,null,null,null,{"$f":"IF(G63=0,\"\",(G63-L63)/G63)","v":""}]
["Проектирование","разработка документов для монтажа системы вентиляции",1,"Усл.",null,50000,{"$f":"E64+F64","v":50000},0.8,null,30000,null,{"$f":"SUM(J64:K64)","v":30000},{"$f":"IF(G64=0,\"\",(G64-L64)/G64)","v":0.4}]
["Монтаж системы вентиляции 2 этап",null,null,"Усл.",null,{"$f":"SUM(J18:K62)/0.5*$K$88","v":201480},null,null,null,null,null,{"$f":"SUM(J65:K65)","v":0},{"$f":"IF(F65=0,\"\",(F65-SUM(J18:K63))/F65)","v":0.5}]
["Итого материал (1+2 этап):                                                                                                                                                                                                                                                ",null,null,null,null,{"$f":"SUM(E7:E63)","v":795380},null,null,null,null,null,{"$f":"SUM(I7:I65)","v":556766},{"$f":"IF(F66=0,\"\",(F66-L66)/F66)","v":0.3}]
["Работа:                                                                                                                                                                                                                                                        ",null,null,null,null,{"$f":"SUM(F7:F65)","v":441560},null,null,null,null,null,{"$f":"SUM(J7:K65)","v":194100}]
["Финишный этап (после отделки)","Установка диффузора на адаптер",null,"шт",{"$f":"I68/H68*$J$88","v":0},null,{"$f":"E68+F68","v":0},0.7,{"$f":"C68*Узлы!D135","v":0},{"$f":"C68*Работы!B12","v":0},{"$f":"J68*20%","v":0},{"$f":"SUM(I68:K68)","v":0},{"$f":"IF(G68=0,\"\",(G68-I68)/G68)","v":""}]
[null,"Установка прямоугольной решётки на адаптер",null,"шт",{"$f":"I69/H69*$J$88","v":0},null,{"$f":"E69+F69","v":0},0.7,{"$f":"C69*Узлы!D136","v":0},{"$f":"C69*Работы!B13","v":0},{"$f":"J69*20%","v":0},{"$f":"SUM(I69:K69)","v":0},{"$f":"IF(G69=0,\"\",(G69-I69)/G69)","v":""}]
[null,"Установка нестандартной прямоугольной решётки на адаптер",null,"шт",{"$f":"I70/H70*$J$88","v":0},null,{"$f":"E70+F70","v":0},0.7,{"$f":"C70*Узлы!D137","v":0},{"$f":"C70*Работы!B14","v":0},{"$f":"J70*20%","v":0},{"$f":"SUM(I70:K70)","v":0},""]
["Монтаж финишных устройств","(рекомендуется делать силами бригады отделочников заказчика)",null,"Усл.",null,{"$f":"SUM(J68:K70)/H71*$K$88","v":0},{"$f":"C71*F71","v":0},0.5,null,null,null,{"$f":"SUM(J71:K71)","v":0},{"$f":"IF(F71=0,\"\",(F71-SUM(J68:K70))/F71)","v":""}]
[0,null,null,null,null,{"$f":"SUM(E68:E70)","v":0},null,null,null,null,null,{"$f":"SUM(I68:I70)","v":0},""]
["Работа:                                                                                                                                                                                                                                                        ",null,null,null,null,{"$f":"SUM(G71)","v":0},null,null,null,null,null,{"$f":"SUM(J68:K70)","v":0},""]
[]
["Дополнительно"]
["Материалы/услуги","Описание","Кол-во","Ед.изм","Мат-ал, руб","Работа, руб ","Итого, руб",null,"Материал","Бригада","Прораб","Итого","Рента"]
["Проходные отверстия в плите","Алмазное сверление",2,"шт.",null,{"$f":"IF(C77=0,0,IF(C77<4,11000,IF(C77>3,9000+2300*(C77-3))))","v":11000},{"$f":"F77+E77","v":11000},null,null,10000]
["Подготовительные и накладные расходы","Включают разработку комплекта документов для монтажа, проверку ОТК и приемку каждого этапа работ инженерами технического надзора, соблюдение стандарта компании",1,"Усл.",null,{"$f":"51000","v":51000},{"$f":"F78*C78","v":51000},null,{"$f":"12500+(C68*700)","v":12500},{"$f":"(1500+1500+1500)*2","v":9000},{"$f":"2500*2","v":5000},{"$f":"(5500*2)+6500","v":17500}]
["Транспортные расходы ","Доставка оборудования и материалов на объект",1,"усл.",null,{"$f":"L79/0.8","v":37500},{"$f":"F79","v":37500},null,null,null,null,30000]
["Итого по смете:",null,null,null,null,{"$f":"SUM(F66:G67,G77:G79,F72:G73)","v":1336440},null,null,{"$f":"SUM(I7:I65,I78,I68:I70)","v":569266},{"$f":"SUM(J7:J65,J77:J79)+SUM(J68:J70)*$C$71","v":185750},{"$f":"SUM(K7:K65,K77:K79)+SUM(K68:K70)*$C$71","v":32350},{"$f":"SUM(L77:L79,I80:K80)","v":834866},{"$f":"IF(F82=0,\"\",(F82-L80)/F82)","v":0.37530603693394393}]
["Скидка:",null,null,null,null,null,0]
["Итого по смете со скидкой:",null,null,null,null,{"$f":"F80-G81","v":1336440}]
["* При выполнении разводки под потолком необходимо добавить декоративный короб. При выполнении разводки в межэтажном перекрытии необходима дополнительная обрешётка."]
["** ПНР  выполняется по факту готовности объекта",null,null,null,null,null,{"$f":"Узлы!D1","v":"2023-10-10"}]
[null,null,null,null,null,null,null,null,null,"Коэффициент для ренты"]
[]
[null,null,null,null,null,null,null,null,null,"Мат","Раб"]
[null,null,null,null,null,null,null,null,null,1,1]

{"sheet":"Проект до 250м² ","index":3,"n_rows":54,"n_cols":15,"rows_kept":54,"cut":false,"hidden":false,"merged":[[52,4,52,5],[53,4,53,5],[54,1,54,5],[46,1,46,5],[47,1,47,5],[48,4,48,5],[49,4,49,5],[50,4,50,5],[51,4,51,5],[42,1,42,3],[42,4,42,5],[43,1,43,3],[43,4,43,5],[25,6,25,8],[41,0,41,5],[29,6,29,8],[30,6,30,8],[22,8,22,9],[1,0,1,5],[23,6,23,8],[12,10,13,14],[1,10,1,14],[4,6,4,8],[6,6,6,8],[9,10,10,14],[18,6,18,8],[21,6,21,8]]}
[]
["Прайс-лист на проектные работы квартиры и дома до 250 м²",null,null,null,null,null,null,null,null,null,"Итоговое коммереское предложение"]
[1,"Предварительная стадия  ",null,null,null,"Сумма",null,null,null,null,1,"Предварительная стадия  ","шт",1,{"$f":"F9","v":10800}]
["1.1","Сбор исходных данных","шт",1,3600,{"$f":"E4*D4","v":3600},null,null,null,null,2,"Раздел вентиляции","м2",{"$f":"D11","v":109.29},{"$f":"F18","v":25016.46}]
["1.2","Выезд на объект (в пределах МКАД)","шт",0,6000,{"$f":"E5*D5","v":0},"Убирается из сметы при отсутвии потребности выезда",null,null,null,3,"Раздел кондиционирования","м2",{"$f":"D23","v":0},{"$f":"F30","v":0}]
["1.3","Составление технического задания вентиляция","шт",1,4800,{"$f":"E6*D6","v":4800},null,null,null,null,4,"Раздел увлажнения","м2",{"$f":"D11","v":109.29},{"$f":"F32+F33","v":0}]
["1.4","Составление технического задания кондиционирование","шт",0,4800,{"$f":"E7*D7","v":0},"Убирается из сметы при отсутвии кондиционирования",null,null,null,null,"ИТОГО по предложению",null,null,{"$f":"SUM(O3:O6)","v":35816.46}]
["1.5","Отправка проекта и документов","шт",1,2400,{"$f":"E8*D8","v":2400}]
[null,"ИТОГО по предварительной стадии:",null,null,null,{"$f":"SUM(F4:F8)","v":10800}]
[2,"Проект вентиляции",null,null,null,"Сумма"]
["2.1","Расчет и утверждение воздухообмена","м²",{"$f":"58.45+55.73-2.7-2.19","v":109.29},{"$f":"20*1.2","v":24},{"$f":"E11*D11","v":2622.96}]
["2.2","Подбор оборудования вентиляции","м²",109.29,{"$f":"20*1.2","v":24},2622.96]
["2.3","Планы системы вентиляции","м²",109.29,{"$f":"30*1.2","v":36},3934.44,null,null,null,null,"Заказчику направлять только данный вариант КП, подробную смету только при доп. запросе заказчика"]
["2.4","Спецификация вентиляции","м²",109.29,{"$f":"35*1.2","v":42},4590.18]
["2.5","Изометрическая схема вентиляция","м²",109.29,{"$f":"20*1.2","v":24},2622.96]
["2.6","Техническое задание на подключение силового электропитания и план автоматизации","м²",109.29,{"$f":"20*1.2","v":24},2622.96]
["2.7","Изготовление пояснительной записки","шт",1,{"$f":"5000*1.2","v":6000},{"$f":"E17*D17","v":6000}]
[null,"ИТОГО за раздел вентиляции:",null,null,null,{"$f":"SUM(F11:F17)","v":25016.46}]
[3,"Проект кондиционирования",null,null,null,"Сумма","Указывать площадь ТОЛЬКО обслуживаемых помещений (Σ спален, детских, кабинетов)"]
["3.1","Расчет теплопритоков","м²",0,{"$f":"30*1.2","v":36},{"$f":"D20*E20","v":0}]
["3.2","Подбор оборудования кондиционирования","м²",0,{"$f":"20*1.2","v":24},{"$f":"D21*E21","v":0}]
["3.3","Планы системы канального кондиционирования","м²",0,{"$f":"35*1.2","v":42},0,"Убирается из сметы при отсутвии канального кондиционирования"]
["3.4","Планы системы фреонового трубопровода и дренажа","м²",0,{"$f":"30*1.2","v":36},0]
["3.5","Спецификация вентразводки канального кондиционирования","м²",0,{"$f":"20*1.2","v":24},0,"Убирается из сметы при отсутвии канального кондиционирования"]
["3.6","Спецификация фреонового трубопровода и дренажа","м²",0,{"$f":"20*1.2","v":24},0]
["3.7","Изометрическая схема вентразводки канального кондиционирования","м²",0,{"$f":"20*1.2","v":24},0,"Убирается из сметы при отсутвии канального кондиционирования"]
["3.8","Изометрическая схема фреонового трубопровода и дренажа","м²",0,{"$f":"20*1.2","v":24},0]
["3.9","Техническое задание на подключение силового электропитания и  автоматизации  кондиционирования","м²",0,{"$f":"20*1.2","v":24},0]
["3.10","Изготовление пояснительной записки","шт",0,{"$f":"5000*1.2","v":6000},0]
[null,"ИТОГО за раздел кондиционирования:",null,null,null,{"$f":"SUM(F20:F29)","v":0},"при потребности в центральном охладителе в проекте в ячейке площадь указывать 0 м², стоимость давать фиксированную 10 000 руб."]
[4,"Проект увлажнения",null,null,null,"Сумма","При расчете проекта увлажнения выбрать корректную площадь из предложенных вариантов "]
["4.1","Объект менее 100 м²","шт",0,15000,{"$f":"E32*D32","v":0}]
["4.2","Объект более 100 м² до 250 м²","шт",0,10000,{"$f":"E33*D33","v":0}]
[null,"ИТОГО по предложению",null,null,null,{"$f":"(F9+F18+F30+F32+F33)","v":35816.46}]
[]
[]
[5,"ОПЦИОНАЛЬНО",null,null,null,"Сумма"]
["5.1","Дополнительная рабочая встреча","шт",1,{"$f":"5000*1.2","v":6000},{"$f":"E38*D38","v":6000}]
["5.2","VAV система","шт",1,{"$f":"10000*1.2","v":12000},{"$f":"E39*D39","v":12000}]
["5.3","Выезд на объект до 50км от МКАД","шт",1,{"$f":"8000*1.2","v":9600},{"$f":"E40*D40","v":9600}]
[]
["При нестандартных объектах суммы разделов умножать на дополнительный коэффициент"]
["1","Коммерческие и административные помещения",null,null,0.7]
["2","Фахверк",null,null,1.5]
[]
[]
[null,"Примечания:"]
["1","Возможно изготовление монтажной схемы. Тогда позиции, общие данные, пояснительная записка, изометрические схемы вычитаются из стоимости проекта"]
["2","Средняя цена за 1 м²",null,"м²","руб/м²"]
[null,"Проект вентиляции ",null,{"$f":"D15","v":109.29},{"$f":"F18/D50","v":228.89980785067249}]
[null,"Проект канального кондиционирования",null,{"$f":"D22","v":0},{"$f":"F30/D51","v":{"$error":"#DIV/0!"}}]
[null,"Проект настенного кондиционирования",null,{"$f":"D20","v":0},{"$f":"F30/D52","v":{"$error":"#DIV/0!"}}]
[null,"Проект увлажнения",null,{"$f":"D11","v":109.29},{"$f":"(F32+F33)/D53","v":0}]
[3,"ОБЩАЯ СТОИМОСТЬ",null,null,{"$f":"F34/D11","v":327.71946198188306}]

{"sheet":"Проект до 500 м²","index":4,"n_rows":52,"n_cols":15,"rows_kept":52,"cut":false,"hidden":false,"merged":[[51,4,51,5],[45,1,45,5],[46,4,46,5],[47,4,47,5],[48,4,48,5],[49,4,49,5],[50,4,50,5],[41,1,41,3],[41,4,41,5],[18,6,18,8],[44,1,44,5],[25,12,25,14],[21,6,21,8],[21,12,21,14],[18,12,18,14],[29,6,29,8],[39,0,39,5],[40,1,40,3],[40,4,40,5],[22,12,22,14],[23,6,23,8],[24,12,24,14],[25,6,25,8],[20,12,20,14],[1,0,1,5],[1,10,1,14],[4,6,4,8],[6,6,6,8],[11,10,12,14],[16,12,16,14],[17,12,17,14]]}
[]
["Прайс-лист на проектные работы квартиры и дома от 250 м² до 500 м²",null,null,null,null,null,null,null,null,null,"Итоговое коммереское предложение"]
[1,"Предварительная стадия  ",null,null,null,"Сумма",null,null,null,null,1,"Предварительная стадия  ","шт",1,{"$f":"F9","v":15600}]
["1.1","Сбор исходных данных","шт",1,{"$f":"3000*1.2","v":3600},{"$f":"E4*D4","v":3600},null,null,null,null,2,"Раздел вентиляции","м²",{"$f":"D11","v":463},{"$f":"F18","v":79894.8}]
["1.2","Выезд на объект (в пределах МКАД)","шт",0,8000,{"$f":"E5*D5","v":0},"Убирается из сметы при отсутвии потребности выезда",null,null,null,3,"Раздел кондиционирования","м²",{"$f":"D20","v":282},{"$f":"F30","v":47284.800000000003}]
["1.3","Составление технического задания вентиляция","шт",1,{"$f":"4000*1.2","v":4800},{"$f":"E6*D6","v":4800},null,null,null,null,4,"Раздел увлажнения","м²",{"$f":"D11","v":463},{"$f":"F32","v":0}]
["1.4","Составление технического задания кондиционирование","шт",1,{"$f":"4000*1.2","v":4800},{"$f":"E7*D7","v":4800},"Убирается из сметы при отсутвии кондиционирования",null,null,null,null,"ИТОГО по предложению",null,null,{"$f":"SUM(O3:O6)","v":142779.6}]
["1.5","Отправка проекта и документов","шт",1,{"$f":"2000*1.2","v":2400},{"$f":"E8*D8","v":2400}]
[null,"ИТОГО по предварительной стадии:",null,null,null,{"$f":"SUM(F4:F8)","v":15600}]
[2,"Проект вентиляции",null,null,null,"Сумма"]
["2.1","Расчет и утверждение воздухообмена","м²",463,{"$f":"18*1.2","v":21.599999999999998},{"$f":"E11*D11","v":10000.799999999999}]
["2.2","Подбор оборудования вентиляции","м²",463,{"$f":"18*1.2","v":21.599999999999998},{"$f":"E12*D12","v":10000.799999999999},null,null,null,null,"Заказчику направлять только данный вариант КП, подробную смету только при доп. запросе заказчика"]
["2.3","Планы системы вентиляции","м²",463,{"$f":"28*1.2","v":33.6},15556.800000000001]
["2.4","Спецификация вентиляции","м²",463,{"$f":"33*1.2","v":39.6},18334.8]
["2.5","Изометрическая схема вентиляция","м²",463,{"$f":"18*1.2","v":21.599999999999998},10000.799999999999]
["2.6","Техническое задание на подключение силового электропитания и план автоматизации","м²",463,{"$f":"18*1.2","v":21.599999999999998},10000.799999999999]
["2.7","Изготовление пояснительной записки","шт",1,{"$f":"5000*1.2","v":6000},6000]
[null,"ИТОГО за раздел вентиляции:",null,null,null,{"$f":"SUM(F11:F17)","v":79894.8}]
[3,"Проект кондиционирования*",null,null,null,"Сумма","Указывать площадь ТОЛЬКО обслуживаемых помещений (Σ спален, детских кабинетов)"]
["3.1","Расчет теплопритоков","м²",282,{"$f":"27*1.2","v":32.4},{"$f":"D20*E20","v":9136.7999999999993}]
["3.2","Подбор оборудования кондиционирования","м²",282,{"$f":"17*1.2","v":20.399999999999999},{"$f":"D21*E21","v":5752.7999999999993}]
["3.3","Планы системы канального кондиционирования","м²",0,{"$f":"32*1.2","v":38.4},0,"Убирается из сметы при отсутвии канального кондиционирования"]
["3.4","Планы системы фреонового трубопровода и дренажа","м²",282,{"$f":"27*1.2","v":32.4},9136.7999999999993]
["3.5","Спецификация вентразводки канального кондиционирования","м²",0,{"$f":"17*1.2","v":20.399999999999999},0,"Убирается из сметы при отсутвии канального кондиционирования"]
["3.6","Спецификация фреонового трубопровода и дренажа","м²",282,{"$f":"17*1.2","v":20.399999999999999},5752.7999999999993]
["3.7","Изометрическая схема вентразводки канального кондиционирования","м²",0,{"$f":"17*1.2","v":20.399999999999999},0,"Убирается из сметы при отсутвии канального кондиционирования"]
["3.8","Изометрическая схема фреонового трубопровода и дренажа","м²",282,{"$f":"17*1.2","v":20.399999999999999},5752.7999999999993]
["3.9","Техническое задание на подключение силового электропитания и  автоматизации  кондиционирования","м²",282,{"$f":"17*1.2","v":20.399999999999999},5752.7999999999993]
["3.10","Изготовление пояснительной записки","шт",1,{"$f":"5000*1.2","v":6000},6000]
[null,"ИТОГО за раздел кондиционирования:",null,null,null,{"$f":"SUM(F20:F29)","v":47284.800000000003},"при потребности в центральном охладителе в проекте в ячейке площадь указывать 0 м², стоимость давать фиксированную 15 000 руб."]
[4,"Проект увлажнения",null,null,null,"Сумма"]
["4.1","Объект от 250 м² до 500 м²","шт",0,10000,{"$f":"E32*D32","v":0}]
[null,"ИТОГО по предложению",null,null,null,{"$f":"F9+F18+F30+F32","v":142779.6}]
[]
[5,"ОПЦИОНАЛЬНО",null,null,null,"Сумма"]
["5.1","Дополнительная рабочая встреча","шт",1,{"$f":"5000*1.2","v":6000},{"$f":"E36*D36","v":6000}]
["5.2","VAV система","шт",1,{"$f":"10000*1.2","v":12000},{"$f":"E37*D37","v":12000}]
["5.3","Выезд на объект до 50км/МКАД","шт",1,{"$f":"8000*1.2","v":9600},{"$f":"E38*D38","v":9600}]
[]
["При нестандартных объектах суммы разделов умножать на дополнительный коэффициент"]
["1","Коммерческие и административные помещения",null,null,0.7]
["2","Фахверк",null,null,1.5]
[]
[]
[null,"Примечания:"]
["1","Возможно изготовление монтажной схемы. Тогда позиции, общие данные, пояснительная записка, изометрические схемы вычитаются из стоимости проекта"]
["2","Средняя цена за 1 м²",null,"м²","руб/м²"]
[null,"Проект вентиляции ",null,{"$f":"D15","v":463},{"$f":"F18/D48","v":172.55896328293738}]
[null,"Проект канального кондиционирования",null,{"$f":"D22","v":0},{"$f":"F30/D49","v":{"$error":"#DIV/0!"}}]
[null,"Проект настенного кондиционирования",null,{"$f":"D20","v":282},{"$f":"F30/D50","v":167.67659574468087}]
[null,"Проект увлажнения",null,{"$f":"D11","v":463},{"$f":"F32/D51","v":0}]
[3,"ОБЩАЯ СТОИМОСТЬ",null,null,{"$f":"F33/D11","v":308.37926565874733}]

{"sheet":"Проект более 500 м²","index":5,"n_rows":61,"n_cols":15,"rows_kept":61,"cut":false,"hidden":false,"merged":[[40,0,40,5],[41,1,41,3],[41,4,41,5],[21,6,21,8],[23,6,23,8],[25,6,25,8],[29,6,29,8],[53,1,53,5],[42,1,42,3],[42,4,42,5],[44,1,44,5],[45,1,45,5],[46,4,46,5],[47,4,47,5],[52,1,52,5],[50,4,50,5],[51,4,51,5],[48,4,48,5],[49,4,49,5],[12,10,13,14],[18,6,18,8],[1,0,1,5],[1,10,1,14],[4,6,4,8],[6,6,6,8]]}
[]
["Прайс-лист на проектные работы квартиры и дома более 500 м²",null,null,null,null,null,null,null,null,null,"Итоговое коммереское предложение"]
[1,"Предварительная стадия  ",null,null,null,"Сумма",null,null,null,null,1,"Предварительная стадия  ","шт",1,{"$f":"F9","v":15600}]
["1.1","Сбор исходных данных","шт",1,{"$f":"3000*1.2","v":3600},{"$f":"E4*D4","v":3600},null,null,null,null,2,"Раздел вентиляции","м2",{"$f":"D11","v":860},{"$f":"F18","v":118488}]
["1.2","Выезд на объект (в пределах МКАД)","шт",0,6000,{"$f":"E5*D5","v":0},"Убирается из сметы при отсутвии потребности выезда",null,null,null,3,"Раздел кондиционирования","м2",{"$f":"D20","v":313},{"$f":"F30","v":48067.199999999997}]
["1.3","Составление технического задания вентиляция","шт",1,{"$f":"4000*1.2","v":4800},{"$f":"E6*D6","v":4800},null,null,null,null,4,"Раздел увлажнения","м2"]
["1.4","Составление технического задания кондиционирование","шт",1,{"$f":"4000*1.2","v":4800},{"$f":"E7*D7","v":4800},"Убирается из сметы при отсутвии кондиционирования",null,null,null,null,"ИТОГО по предложению",null,null,{"$f":"SUM(O3:O6)","v":182155.2}]
["1.5","Отправка проекта и документов","шт",1,{"$f":"2000*1.2","v":2400},{"$f":"E8*D8","v":2400}]
[null,"ИТОГО по предварительной стадии:",null,null,null,{"$f":"SUM(F4:F8)","v":15600}]
[2,"Проект вентиляции",null,null,null,"Сумма"]
["2.1","Расчет и утверждение воздухообмена","м²",860,{"$f":"14*1.2","v":16.8},{"$f":"E11*D11","v":14448}]
["2.2","Подбор оборудования вентиляции","м²",860,{"$f":"14*1.2","v":16.8},14448]
["2.3","Планы системы вентиляции","м²",860,{"$f":"24*1.2","v":28.799999999999997},24767.999999999996,null,null,null,null,"Заказчику направлять только данный вариант КП, подробную смету только при доп. запросе заказчика"]
["2.4","Спецификация вентиляции","м²",860,{"$f":"29*1.2","v":34.799999999999997},29927.999999999996]
["2.5","Изометрическая схема вентиляция","м²",860,{"$f":"14*1.2","v":16.8},14448]
["2.6","Техническое задание на подключение силового электропитания и план автоматизации","м²",860,{"$f":"14*1.2","v":16.8},14448]
["2.7","Изготовление пояснительной записки","шт",1,{"$f":"5000*1.2","v":6000},6000]
[null,"ИТОГО за раздел вентиляции:",null,null,null,{"$f":"SUM(F11:F17)","v":118488}]
[3,"Проект кондиционирования",null,null,null,"Сумма","Указывать площадь ТОЛЬКО обслуживаемых помещений (Σ спален, детских, кабинетов)"]
["3.1","Расчет теплопритоков","м²",313,{"$f":"24*1.2","v":28.799999999999997},{"$f":"D20*E20","v":9014.4}]
["3.2","Подбор оборудования кондиционирования","м²",313,{"$f":"16*1.2","v":19.2},6009.5999999999995]
["3.3","Планы системы канального кондиционирования","м²",0,{"$f":"29*1.2","v":34.799999999999997},0,"Убирается из сметы при отсутвии канального кондиционирования"]
["3.4","Планы системы фреонового трубопровода и дренажа","м²",313,{"$f":"24*1.2","v":28.799999999999997},9014.4]
["3.5","Спецификация вентразводки канального кондиционирования","м²",0,{"$f":"16*1.2","v":19.2},0,"Убирается из сметы при отсутвии канального кондиционирования"]
["3.6","Спецификация фреонового трубопровода и дренажа","м²",313,{"$f":"16*1.2","v":19.2},6009.5999999999995]
["3.7","Изометрическая схема вентразводки канального кондиционирования","м²",0,{"$f":"16*1.2","v":19.2},0,"Убирается из сметы при отсутвии канального кондиционирования"]
["3.8","Изометрическая схема фреонового трубопровода и дренажа","м²",313,{"$f":"16*1.2","v":19.2},6009.5999999999995]
["3.9","Техническое задание на подключение силового электропитания и  автоматизации  кондиционирования","м²",313,{"$f":"16*1.2","v":19.2},6009.5999999999995]
["3.10","Изготовление пояснительной записки","шт",1,{"$f":"5000*1.2","v":6000},{"$f":"D29*E29","v":6000}]
[null,"ИТОГО за раздел кондиционирования:",null,null,null,{"$f":"SUM(F20:F29)","v":48067.199999999997},"при потребности в центральном охладителе в проекте, в ячейке площадь указывать 0 м², стоимость давать фиксированную 10 000 руб."]
[4,"Проект увлажнения",null,null,null,"Сумма"]
["4.1","Объект от 500 м² до 1000 м²","шт",0,10000,{"$f":"E32*D32","v":0}]
[null,"ИТОГО по предложению",null,null,null,{"$f":"F9+F18+F30+F32","v":182155.2}]
[]
[5,"ОПЦИОНАЛЬНО",null,null,null,"Сумма"]
["5.1","Дополнительная рабочая встреча","шт",1,5000,{"$f":"E36*D36","v":5000}]
["5.4","VAV система","шт",1,10000,{"$f":"E37*D37","v":10000}]
["5.5","Выезд на объект до 50км/МКАД","шт",1,8000,{"$f":"E38*D38","v":8000}]
[]
[]
["При нестандартных объектах суммы разделов умножать на дополнительный коэффициент"]
["1","Коммерческие и административные помещения",null,null,0.7]
["2","Фахверк",null,null,1.5]
[]
[null,"Примечания:"]
["1","Возможно изготовление монтажной схемы. Тогда позиции, общие данные, пояснительная записка, изометрические схемы вычитаются из стоимости проекта"]
["2","Средняя цена за 1 м²",null,"м²","руб/м²"]
[null,"Проект вентиляции ",null,{"$f":"D11","v":860},{"$f":"F18/D48","v":137.7767441860465}]
[null,"Проект канального кондиционирования",null,{"$f":"D20","v":313},{"$f":"F30/D49","v":153.56932907348241}]
[null,"Проект настенного кондиционирования",null,{"$f":"D25","v":313},{"$f":"F30/D50","v":153.56932907348241}]
[null,"Проект увлажнения",null,{"$f":"D16","v":860},{"$f":"F32/D51","v":0}]
[3,"ОБЩАЯ СТОИМОСТЬ",null,null,{"$f":"F33/D16","v":211.80837209302328}]
[]
[]
[]
[]
[]
[]
[]
[]
[" "]